Cogmind - Beta 14 @@@ ROGUE MODE // 2024.09.14 @ 12:47:32 Player: Some Pennies Result: Destroyed by O1-8RE(R) with Subdweller Laser Performance ------------- Evolutions (0) 0 Regions Visited (2) 400 Robots Destroyed (25) 125 Value Destroyed (499) 499 Prototype IDs (2) 40 Alien Tech Used (0) 0 Bonus (0) 0 TOTAL SCORE: 1064 Bonus ------- None Cogmind --------- Core Integrity 0/250 Matter 290/300 Energy 87/125 System Corruption 0% Temperature Cool (24) Movement Rolling (107) Ox1 Location -10/Subcaves Parts ------- > --- POWER (1) -------- Light Ion Engine > --- PROPULSION (2) --- Wheel Subdweller Monowheel > --- UTILITY (2) ------ Disposable Heat Sink Large Storage Unit > --- WEAPON (2) ------- Subdweller Laser Subdweller Laser > --- INVENTORY (15) --- Subdweller Monowheel Medium Storage Unit Signal Interpreter Improved Terrain Scanner ECM Suite EM Pulse Gun Medium Laser Medium Laser Medium Laser Grenade Launcher Mining Laser Hammer Peak State ------------ > --- POWER ------------ Light Ion Engine > --- PROPULSION ------- Wheel Subdweller Monowheel > --- UTILITY ---------- Disposable Heat Sink Large Storage Unit > --- WEAPON ----------- Subdweller Laser Subdweller Laser > --- INVENTORY -------- Medium Storage Unit Signal Interpreter Improved Terrain Scanner ECM Suite EM Pulse Gun Medium Laser Medium Laser Medium Laser Grenade Launcher Mining Laser Hammer [Rating: 12] Favorites ----------- Power Ion Engine Engine Ion Engine Propulsion Light Treads Treads Light Treads Wheel Subdweller Monowheel Utility Seismic Detector Device Seismic Detector Storage Large Storage Unit Weapon Beam Cannon Energy Gun Medium Laser Energy Cannon Beam Cannon Ballistic Gun Assault Rifle Impact Weapon Hammer Build | -11 -10 -10 ------- Run | Yrd Mat Sub Slots Evolved . | . . . Power . | . . . Propulsion . | . . . Utility . | . . . Weapon . | . . . Parts Attached 33 | 7 10 16 Power 5 | 1 2 2 Engine 5 | 1 2 2 Core . | . . . Reactor . | . . . Propulsion 7 | 2 1 4 Treads 4 | 2 1 1 Leg . | . . . Wheel 3 | . . 3 Hover . | . . . Flight . | . . . Utility 5 | 2 2 1 Device 2 | 1 . 1 Storage 3 | 1 2 . Processor . | . . . Hackware . | . . . Protection . | . . . Artifact . | . . . Weapon 16 | 2 5 9 Energy Gun 4 | . 1 3 Energy Cannon 5 | . 2 3 Ballistic Gun 4 | 2 2 . Ballistic Cannon . | . . . Launcher . | . . . Special Weapon . | . . . Impact Weapon 3 | . . 3 Slashing Weapon . | . . . Piercing Weapon . | . . . Special Melee Weapon . | . . . Unidentified Prototypes . | . . . Parts Lost 10 | . 1 9 Power 2 | . . 2 Propulsion 5 | . 1 4 Utility 1 | . . 1 Weapon 2 | . . 2 Highest Loss Streak 8 | . 1 8 To Critical Strikes . | . . . Average Slot Usage (%) 98 | . 99 95 Engine 13 | . 14 12 Treads 24 | . 28 16 Wheel 2 | . . 8 Device 13 | . 14 13 Storage 14 | . 14 14 Energy Gun 5 | . 3 11 Energy Cannon 8 | . 6 14 Ballistic Gun 13 | . 17 . Peak Build Rating 12 | 7 8 12 Average Rating 7 | 5 7 9 On Entrance 5 | . 7 8 Naked Turns . | . . . Heaviest Build 32 | 14 32 32 Greatest Support 40 | 40 40 40 Greatest Overweight (x) 1 | 1 . 1 Average Overweight (x) . | . . . Largest Inventory Capacity 15 | 8 15 15 Average Capacity 13 | 7 13 15 Most Carried 15 | 3 14 15 Average Carried 10 | 1 9 12 Final Capacity 15 | 8 15 15 Final Carried 13 | 3 13 12 Class Distribution -------------------- 92% | Mutant 7% | Scavenger-Mutant Dominant Class ---------------- Mutant | -10/Materials Mutant | -10/Subcaves Resources | -11 -10 -10 ----------- Run | Yrd Mat Sub Matter Collected 703 | 262 326 115 Remotely . | . . . Salvage Created 792 | 124 428 240 Parts 56 | 10 35 11 Haulers Intercepted 1 | . 1 . Recyclers Shooed . | . . . Parts Field Recycled . | . . . Retrieved Matter . | . . . Parts Self-Destructed . | . . . Prevented . | . . . Kills | -11 -10 -10 ------- Run | Yrd Mat Sub Combat Hostiles Destroyed 15 | . 9 6 Guns 12 | . 9 3 Cannons 3 | . . 3 Classes Destroyed 9 | 2 5 2 Worker 1 | . 1 . Tunneler 3 | 3 . . Hauler 1 | . 1 . Recycler 2 | 1 1 . Watcher 3 | . 3 . Swarmer 6 | . 6 . Grunt 3 | . 3 . Artisan 1 | . . 1 Subdweller 6 | . . 6 Best Kill Streak 4 | 4 4 1 Combat Bots Only 4 | . 4 1 Max Kills in Single Turn 2 | 1 2 1 Gunslinging 1 | . 1 . Exploded . | . . . Melee . | . . . Uniques/NPCs Destroyed . | . . . Combat | -11 -10 -10 -------- Run | Yrd Mat Sub Hostile Shots Fired 125 | . 73 52 Missed 36 | . 23 13 Damage Taken 1615 | . 568 1047 Core 258 | . 77 181 Absorbed by Shields . | . . . Core Remaining (%) 100 | 100 . . Volleys Fired 93 | 9 50 34 Largest 2 | 2 2 2 Hottest 120 | 40 70 120 Shots Fired 186 | 18 100 68 Gun 149 | 18 100 31 Cannon 37 | . . 37 Launcher . | . . . Special . | . . . Kinetic 110 | 18 92 . Thermal 76 | . 8 68 Explosive . | . . . Electromagnetic . | . . . Robot Hit Streak 14 | 6 11 14 Robot Miss Streak 6 | 1 6 3 Penetration Max . | . . . Secondary Targets 2 | . 2 . Max Gunslinging Chain 1 | . 1 . Shots Hit Robots 122 | 13 61 48 Core Hits 43 | 5 26 12 Critical Kills . | . . . Critical Parts Destroyed . | . . . Critical Strikes 1 | . 1 . Burn 1 | . 1 . Melee Attacks 7 | . . 7 Impact 7 | . . 7 Slashing . | . . . Piercing . | . . . Sneak Attacks . | . . . Combat Hostiles . | . . . Follow-up Attacks . | . . . Damage Inflicted 1598 | 154 660 784 Guns 1140 | 154 658 328 Cannons 456 | . . 456 Explosions . | . . . Melee . | . . . Ramming 2 | . 2 . Kinetic 749 | 154 595 . Thermal 847 | . 63 784 Explosive . | . . . Electromagnetic . | . . . Impact . | . . . Slashing . | . . . Piercing . | . . . Highest Corruption . | . . . Average Corruption . | . . . Corruption Purged . | . . . Corruption Blocked . | . . . Overload Shots . | . . . Overflow Damage 5 | . . 5 Projectiles 5 | . . 5 Explosions . | . . . Melee . | . . . Knockbacks . | . . . Impact . | . . . Kinetic . | . . . Secondary . | . . . Self-Inflicted Damage . | . . . Shots . | . . . Rammed 1 | . 1 . Targets Rammed 1 | . 1 . Kicked . | . . . Crushed . | . . . Highest Temperature 124 | . 124 24 Average Temperature 29 | . 47 11 Received Heat Transfer 318 | . 120 198 Siege Activations . | . . . Robots Corrupted . | . . . Combat Hostiles . | . . . Parts Fried . | . . . Impact Corruptions . | . . . Robots Melted . | . . . Combat Hostiles . | . . . Parts Melted 3 | . . 3 Heat Transferred 1841 | . 259 1582 Parts Sabotaged . | . . . Parts Stolen . | . . . Parts Stripped . | . . . Power Chain Reactions . | . . . Alert | -11 -10 -10 ------- Run | Yrd Mat Sub Peak Influence 214 | 20 214 . Initial 13 | . 13 . Average 73 | 7 78 . Maximum Alert Level 1 | . 1 . Low Security (%) 92 | 100 91 . Level 1 7 | . 8 . Level 2 . | . . . Level 3 . | . . . Level 4 . | . . . Level 5 . | . . . High Security . | . . . Max Security . | . . . Squads Dispatched 2 | . 2 . Investigation 2 | . 2 . Extermination . | . . . Reinforcement . | . . . Assault . | . . . Garrison . | . . . Intercept . | . . . Searches Triggered . | . . . Construction Impeded . | . . . Haulers Reinforced . | . . . Active Scanning Responses . | . . . Cargo Convoy Interrupts . | . . . Stealth | -11 -10 -10 --------- Run | Yrd Mat Sub Distress Signals . | . . . Communications Jammed . | . . . Distress Signals . | . . . Times Spotted 23 | . 15 8 Peak Tracking Total 5 | . 5 3 Tactical Retreats 1 | . 1 . Traps | -11 -10 -10 ------- Run | Yrd Mat Sub Traps Triggered 1 | . 1 . Indirectly . | . . . Trap Hack Attempts . | . . . Triggered . | . . . Disarmed . | . . . Reprogrammed . | . . . Reused . | . . . Traps Extracted . | . . . Installed . | . . . Triggered . | . . . Machines | -11 -10 -10 ---------- Run | Yrd Mat Sub Machines Disabled . | . . . Max in Single Turn . | . . . Machines Repaired . | . . . Machines Dismantled . | . . . Machines Sabotaged . | . . . Overloaded Fab Kills . | . . . Hacking | -11 -10 -10 --------- Run | Yrd Mat Sub Machines Accessed 7 | . 7 . Terminals 6 | . 6 . Fabricators . | . . . Repair Stations . | . . . Recycling Units 1 | . 1 . Scanalyzers . | . . . Garrison Access . | . . . Total Hacks 26 | . 26 . Successful 12 | . 12 . Failed 13 | . 13 . Catastrophic . | . . . Database Lockouts 1 | . 1 . Manual 25 | . 25 . Terminals 25 | . 25 . Fabricators . | . . . Repair Stations . | . . . Recycling Units 1 | . 1 . Scanalyzers . | . . . Garrison Access . | . . . Terminal Hacks 3 | . 3 . Robot Analysis 1 | . 1 . Prototype ID Bank 1 | . 1 . Terminal Index 1 | . 1 . Fabricator Hacks . | . . . Repair Station Hacks . | . . . Recycling Unit Hacks . | . . . Scanalyzer . | . . . Garrison Access Hacks . | . . . Unauthorized Hacks 9 | . 9 . Terminals 8 | . 8 . Botnet 1 | . 1 . Operators 2 | . 2 . Skim 5 | . 5 . Fabricators . | . . . Repair Stations . | . . . Recycling Units 1 | . 1 . Tunnel 1 | . 1 . Scanalyzers . | . . . Garrison Access . | . . . Data Cores Recovered . | . . . Used . | . . . Hacking Detections 5 | . 5 . Full Trace Events . | . . . Feedback Events . | . . . Feedback Blocked . | . . . Robot Schematics Acquired . | . . . Robots Built . | . . . Authchips . | . . . Time . | . . . Total Robot Build Rating . | . . . Part Schematics Acquired . | . . . Parts Built . | . . . Authchips . | . . . Time . | . . . Total Part Build Rating . | . . . Parts Repaired . | . . . Time . | . . . Parts Recycled . | . . . Recycled Matter . | . . . Retrieved Matter . | . . . Retrieved Components . | . . . Parts Scanalyzed . | . . . Part Schematics Acquired . | . . . Parts Damaged . | . . . Bothacking | -11 -10 -10 ------------ Run | Yrd Mat Sub Used RIF Installer . | . . . Robots Hacked . | . . . Non-combat . | . . . Combat . | . . . Robot Hacks Applied . | . . . Relay Couplers Released . | . . . Fabnet Peak Effective % . | . . . Robots Rewired . | . . . Allies Hacked . | . . . Hacks Repelled . | . . . Allies | -11 -10 -10 -------- Run | Yrd Mat Sub Total Allies . | . . . Largest Group . | . . . Highest-Rated Group . | . . . Highest-Rated Ally . | . . . Total Orders . | . . . Ally Attacks . | . . . Total Damage . | . . . Kills . | . . . Allies Corrupted . | . . . Allies Melted . | . . . Intel | -11 -10 -10 ------- Run | Yrd Mat Sub Robot Analysis Total 1 | . 1 . Derelict Logs Recovered . | . . . Drone Launches . | . . . Drone Recoveries . | . . . Exploration | -11 -10 -10 ------------- Run | Yrd Mat Sub Turns Passed 1804 | 94 1244 466 Spaces Moved 946 | 38 665 243 Core 5 | 5 . . Treads 808 | 33 665 110 Legs . | . . . Wheels 133 | . . 133 Hover . | . . . Flight . | . . . Fastest Speed 50 | 50 160 95 Average Speed 151 | 148 160 127 Slowest Speed 160 | 160 160 160 Overloaded Moves . | . . . Propulsion Burnouts . | . . . Robots Hopped . | . . . Cave-ins Triggered . | . . . Exploration Rate (%) 41 | 4 96 23 Regions Visited 2 Branch Regions 1 Pre-discovered Areas 3 | . 3 . Known Exits Taken . | . . . Unknown Exits Taken 2 | 1 1 . Scrap Searched . | . . . Spaces Dug . | . . . Terrain Destroyed . | . . . Melee . | . . . Projectile . | . . . AOE . | . . . Terrain Rammed . | . . . Walls Destroyed . | . . . Machines Disabled . | . . . Actions | -11 -10 -10 --------- Run | Yrd Mat Sub Total 1124 | 56 752 316 Wait 21 | . 10 11 Move 944 | 37 664 243 Hop . | . . . Pick Up 17 | 3 10 4 Fast Attach 14 | 7 3 4 Attach 7 | . 1 6 Detach 1 | . . 1 Swap 12 | . 6 6 Drop 7 | . 7 . Fire 93 | 9 50 34 Melee 7 | . . 7 Ram . | . . . Kick . | . . . Crush 1 | . 1 . Escape Stasis . | . . . Rewire . | . . . Trap . | . . . Miscellaneous . | . . . Route ------- -11/Scrapyard -10/Materials (discovered 5 exits: [*Mat x3] / [*Min] / [*Sub]) -10/Subcaves (discovered 2 exits: *Mat x2) History --------- Turn | Location | Event 11 | -11/Scrapyard | Discovered new exit (range 16) 95 | -11/Scrapyard | Entered Materials 143 | -10/Materials | Central database locked down 276 | -10/Materials | Discovered new exit (range 14) 311 | -10/Materials | Build established: Mutant 370 | -10/Materials | Discovered new exit (range 8) 400 | -10/Materials | Discovered new exit (range 16) 679 | -10/Materials | Discovered new exit (range 5) 1155 | -10/Materials | Loaded intel: 2 recycling unit locations 1214 | -10/Materials | Learned Storage stockpile data 1231 | -10/Materials | Learned Storage stockpile data 1238 | -10/Materials | Learned 2 Mines zone layouts 1239 | -10/Materials | Learned location of Mines (-10) 1241 | -10/Materials | Learned location of Subcaves (-10) 1250 | -10/Materials | Learned location of 1 exit from Recycling 1268 | -10/Materials | Learned location of 1 exit from Recycling 1333 | -10/Materials | Discovered new exit (range 5) 1339 | -10/Materials | Entered Subcaves 1340 | -10/Subcaves | Identified exit to Materials 1385 | -10/Subcaves | Ambushed by angry Subdweller bent on revenge 1561 | -10/Subcaves | Ambushed by angry Subdweller bent on revenge 1589 | -10/Subcaves | Ambushed by Subdweller buried in earth 1616 | -10/Subcaves | Core integrity fell below 50% 1623 | -10/Subcaves | Core integrity fell below 20% 1673 | -10/Subcaves | Lost 8 parts (2p4n2w) 1741 | -10/Subcaves | Shifting Twisted Machinery released Sub. Monowheel 1741 | -10/Subcaves | Shifting Twisted Machinery released Sub. Laser 1805 | -10/Subcaves | Destroyed by O1-8RE(R) with Subdweller Laser Last Messages --------------- 01634_ OZ-S1D(R) heat short circuits Sub. Power Source. 01637_ OZ-S1D(R) affixes Scrap Shield Fragment to Scrap Shield. 01642_ Ion Engine destroyed. 01644_ Subatomizers dissect the Wheel. 01647_ OZ-S1D(R) affixes Scrap Shield Fragment to Scrap Shield. 01651_ OZ-S1D(R) destroyed. 01657_ Subatomizers dissect the Wheel. 01666_ Acquired Lgt. Ion Engine. 01667_ Acquired 18 matter. 01670_ Acquired Wheel. 01684_ Acquired 32 matter. Sub. Monowheel falls loose from the Twisted Machinery. Sub. Laser falls loose from the Twisted Machinery. 01748_ Acquired Sub. Laser. 01752_ Acquired Sub. Monowheel. Map ----- +----------------------------------------------------+ | | | ?????????????????????????????????????????????????? | | ?????????????????????????????????????????????????? | | ?????????????????????????????????????????????????? | | ?????????????????????????????????????????????????? | | ?????????????????????????????????????????????????? | | ?????????????????????????????????????????????????? | | ?????????????????????????????????????????????????? | | ?????????????????????????????????????????????????? | | ?????????????????????????????????????????????????? | | ?????????????????????????????????????????????????? | | ?????????????????????????????????????????????????? | | ?????????????????????????????????????????????????? | | ?????????????????????????????????????????????????? | | ?????????????????????????????????????????????????? | | ?????????????????????????????????????????????????? | | ???????????????????????####??????????????????????? | | ??????????????????###### ????????????? ##??????? | | ??????????????????? RR????????????? " #?????? | | ???????????????????? #??????????????" ####?? | | ????????????????????? ##?????????????""""""##? | | ?????????????????????# ##??????????????#""" ## | | ?????????????????????# #??????????????# | | ??????????????????????# #???????????#### | | ????????????????????### #???????###### "" | | ????????????????????# @#??????### ## | | ????????????????????## #?????## ## "## | | ?????????????????????## #????## ###### ## | | ??????????????????????## ###### ######????## #? | | ??????????????????????## ## ####??????????###? | | ????????????????????### #????????????????? | | ?????????????????#### #????????????????? | | ?????????? #????????????????? | | ?????????? ##????????????????? | | ?????????? ## #?????????????????? | | ??????????? ?### ##????????????????# | | ??????????? ???# #?????????????????#" | | ???????????? ### ???? ##?????????????????# | | ????????????????#####??? ###??????????????????# | | ???????????????????????# #????????????????????# | | ???????????????????????## ?????????????????????? | | ????????????????????????## ?????????????????????? | | ?????????????????????????# ???????????????????#?? | | ?????????????????????????#"#???????????????????#"? | | ?????????????????????????##????????????????????#"" | | ????????????????????????????????????????????????# | | ????????????????????????????????????????????????## | | ?????????????????????????????????????????????????# | | ?????????????????????????????????????????????????? | | ?????????????????????????????????????????????????? | +----------------------------------------------------+ Best States ------------- Heat Dissipation 25 Coolant Potential 50 Energy Generation 10 Energy Capacity 250 Matter Stores 300 Matter Capacity 300 Sight Range 16 Terrain Scan Density 10 Evasion (%) 41 Recoil Reduction 2 Item Schematics ----------------- None Robot Schematics ------------------ None Fabricated ------------ Nothing Alien Tech Used ----------------- None Achievements -------------- None Challenges ------------ None Game ------ Seed AbsorptionBehemothTendrils Manual? 0 Play Time 00:11:50 Cumulative 310.8 hours Start 2024.09.14 @ 12:36:15 End 2024.09.14 @ 12:47:32 Sessions 1 Manual Loads 0 Difficulty Rogue Special Mode None Game No. 226 Rogue 221 Adventurer 5 Explorer 0 Win Type - Total 7 Types 4/0/3/0/0/0/0/0/0 Lore% 67 Gallery% 84 Achievement% 69 Wizard Run 0 Options --------- Layout 2 ASCII 0 Keyboard 0 Movement Mouse Keybinds 0 Fullscreen 2 Font 24/Smallcaps Map View 50x44 Zoom Use 0% Tactical HUD 1 Map Filters NONE Filters NONE Steam 1 RUN: 2e85afa4-e771-4666-98c6-e19344a35ce3